[Event "CCT Chessable Masters D-II 2024"]
[Site "Online"]
[Date "2024.02.02"]
[Round "1"]
[White "Yu, Yangyi"]
[Black "Nakamura, Hikaru"]
[Result "0-1"]
[ECO "C54"]
[WhiteElo "2720"]
[BlackElo "2788"]
[Annotator "TA"]
[PlyCount "48"]
[EventDate "2024.01.12"]
[EventType "k.o."]
[EventCountry "NET"]
[SourceTitle "playchess.com"]
[Source "ChessBase"]
[SourceQuality "1"]
[TimeControl "600+2"]

{[%evp 17,48,0,0,0,5,0,0,-28,-34,-22,-32,-6,-4,7,-1,-10,-17,-83,-77,-87,-78,-526,-528,-537,-533,-1575,-321,-1545,-1422,-1643,-1635,-1694,-1687]} 1. e4 {[%emt 0:00:02]} e5 {[%emt 0:00:11]} 2. Nf3 {[%emt 0:00:02]} Nc6 {[%emt 0:00:02]} 3. Bc4 {[%emt 0:00:04]} Nf6 {[%emt 0:00:02]} 4. d3 {[%emt 0:00:00]} Bc5 {[%emt 0:00:01]} 5. O-O {[%emt 0:00:04]} d6 {[%emt 0:00:02]} 6. c3 {[%emt 0:00:11]} a6 {[%emt 0:00:05]} 7. Nbd2 {[%emt 0:00:05]} Ba7 {[%emt 0:00:04]} 8. Bb3 {[%emt 0:00:04]} O-O {[%emt 0:00:08]} 9. Re1 {[%emt 0:00:03]} Ng4 {[%emt 0:00:28]} 10. Re2 {[%emt 0:00:01]} Kh8 {[%emt 0:00:02]} 11. Nf1 {[%emt 0:00:20]} f5 {[%emt 0:00:03]} 12. Bg5 {[%emt 0:00:14] The position is equal.} (12. exf5 $5 Bxf5 13. Ng3 $11) 12... Qe8 {[%emt 0:00:26]} 13. exf5 {[%emt 0:00:14]} Bxf5 {[%emt 0:00:18]} 14. Ng3 {[%emt 0:00:01]} Qg6 {[%emt 0:00:29]} 15. Bc2 {[%emt 0:00:50]} d5 {[%emt 0:02:00][%cal Oe5e4] ...e4! is the strong threat.} 16. Qd2 $1 {[%emt 0:00:27] Threatens to win with Nh4.} Nxf2 {[%emt 0:00:31]} 17. Be3 {[%emt 0:00:47]} (17. Rxf2 $11 Bxf2+ 18. Kxf2) 17... Bxe3 $17 {[%emt 0:00:10]} (17... Nxd3 $2 {is the wrong capture.} 18. Nxf5 Qxf5 19. Bxa7 $18 (19. Bxd3 e4 $16) (19. Qxd3 Qxd3 20. Bxd3 e4 $11)) 18. Rxe3 {[%emt 0:00:00] [#]} Ng4 $36 {[%emt 0:00:21][%mdl 2048] Black is really pushing. Black is much more active.} 19. Nh4 $2 {[%emt 0:00:04][%mdl 8192] [#] This move loses the game for White.} (19. Re2 $17 Qd6 20. h3) 19... Qh6 $1 $19 {[%emt 0:00:07]} 20. Ngxf5 {[%emt 0:00:44]} Rxf5 {[%emt 0:00:00]} 21. Nxf5 {[%emt 0:00:01]} Qxh2+ {[%emt 0:00:02]} 22. Kf1 {[%emt 0:00:00] Strongly threatening Rh3.} Rf8 {[%emt 0:01:10] Black is clearly winning.} 23. d4 {[%emt 0:03:32]} e4 {[%emt 0:01:01]} 24. Ke2 {[%emt 0:01:39]} Rxf5 {[%emt 0:00:07] Weighted Error Value: White=1.10/Black=0.00 (flawless) .  Loses game:     	White=1     	---        Mistake:       	White=1     	---        Inaccurate:     	White=3     	---        OK:         	White=4     	Black=7      Best:        	---       	Black=1      Strong:       	White=1     	Black=1} 0-1

[Event "CCT Chessable Masters D-II 2024"]
[Site "Online"]
[Date "2024.02.02"]
[Round "1"]
[White "Sevian, Samuel"]
[Black "Vokhidov, Shamsiddin"]
[Result "1/2-1/2"]
[ECO "A20"]
[WhiteElo "2697"]
[BlackElo "2596"]
[Annotator "TA"]
[PlyCount "121"]
[EventDate "2024.01.12"]
[EventType "k.o."]
[EventCountry "NET"]
[SourceTitle "playchess.com"]
[Source "ChessBase"]
[SourceQuality "1"]
[TimeControl "600+2"]

{[%evp 34,121,64,8,0,0,0,-27,-22,-54,-52,-50,-50,-41,-45,-38,-14,-39,-20,-17,-12,-32,-18,-30,-29,-43,-16,-23,-5,-14,-15,-4,-6,-12,-12,-16,-12,-11,0,0,-10,-8,0,0,0,-17,0,0,0,-16,-10,-45,0,0,0,0,0,-8,-8,-8,0,0,0,0,0,0,0,0,0,0,0,0,0,0,0,0,0,0,0,0,0,0,0,0,0,0,0,0,0,0]} 1. c4 {[%emt 0:00:04]} e5 {[%emt 0:00:08]} 2. g3 {[%emt 0:00:01]} Nf6 {[%emt 0:00:01]} 3. Bg2 {[%emt 0:00:01]} c6 {[%emt 0:00:01]} 4. Nf3 {[%emt 0:00:03]} e4 {[%emt 0:00:01]} 5. Nd4 {[%emt 0:00:01]} Qb6 {[%emt 0:00:03]} 6. Nb3 {[%emt 0:00:24] A20: English Opening: 1...e5.} a5 {[%emt 0:00:03]} 7. d3 {[%emt 0:00:01]} a4 {[%emt 0:00:02]} 8. N3d2 {[%emt 0:00:00]} Bc5 {[%emt 0:00:04]} 9. O-O {[%emt 0:00:03]} e3 {[%emt 0:00:01]} 10. fxe3 {[%emt 0:00:29]} Bxe3+ {[%emt 0:00:00]} 11. Kh1 {[%emt 0:00:01]} Ng4 {[%emt 0:00:30]} 12. Ne4 {[%emt 0:00:03]} O-O {[%emt 0:00:06]} 13. Nbc3 {[%emt 0:00:43]} d5 {[%emt 0:00:28]} 14. cxd5 {[%emt 0:00:03]} Bxc1 {[%emt 0:00:00]} 15. Qxc1 {[%emt 0:00:02]} Ne3 $5 {[%emt 0:00:02][%mdl 4] Exploring less charted territory.} 16. Rf3 {[%emt 0:00:17]} Nxd5 {[%emt 0:00:45]} 17. Qd2 {[%emt 0:00:02]} Nd7 {[%emt 0:00:39]} 18. d4 $146 {[%emt 0:01:26]} (18. Nxd5 $1 $14 cxd5 19. Nc3) ({Predecessor:} 18. Nxd5 cxd5 19. Nc3 Nf6 20. Raf1 Be6 21. Rxf6 gxf6 22. Nxd5 Bxd5 23. Bxd5 Kh8 24. Be4 {½-½ Svidler,P (2714)-So,W (2770) Paris GCT Blitz 2021 (13)}) 18... Qd8 $11 {[%emt 0:01:12]} 19. Raf1 {[%emt 0:00:17]} N7b6 {[%emt 0:00:12]} 20. h3 {[%emt 0:01:23]} Qe7 {[%emt 0:00:32]} 21. b3 {[%emt 0:00:49]} (21. Nxd5 {simplifies} cxd5 22. Nc3 Be6 23. Qd3) 21... axb3 {[%emt 0:00:03]} 22. axb3 {[%emt 0:00:00]} Nxc3 {[%emt 0:00:31]} 23. Nxc3 {[%emt 0:00:07]} Be6 {[%emt 0:00:02]} 24. Ne4 {[%emt 0:00:39]} Nd7 {[%emt 0:01:00]} 25. Ng5 {[%emt 0:00:14]} h6 {[%emt 0:00:41]} 26. Nxe6 {[%emt 0:00:03]} Qxe6 {[%emt 0:00:01]} 27. Re3 {[%emt 0:00:49]} Qd6 {[%emt 0:00:03]} 28. Rd3 {[%emt 0:00:02]} Rad8 {[%emt 0:00:35]} 29. Qa5 {[%emt 0:00:28]} Nf6 {[%emt 0:00:17]} 30. e4 {[%emt 0:00:09]} Qe7 {[%emt 0:00:17]} 31. Qf5 {[%emt 0:00:04]} Qe6 {[%emt 0:00:29]} 32. Qxe6 {[%emt 0:00:45]} fxe6 {[%emt 0:00:01]} 33. Rfd1 {[%emt 0:00:00]} Rd7 {[%emt 0:00:07]} 34. Kg1 {[%emt 0:00:01]} Rfd8 {[%emt 0:00:04]} 35. Kf2 {[%emt 0:00:02]} Ra8 {[%emt 0:00:16]} 36. Bf3 {[%emt 0:00:06]} Ra2+ {[%emt 0:00:04]} 37. R1d2 {[%emt 0:00:03]} Ra1 {[%emt 0:00:11]} 38. Rd1 {[%emt 0:00:02]} Ra2+ {[%emt 0:00:01]} 39. R1d2 {[%emt 0:00:17]} Ra1 {[%emt 0:00:02]} 40. Ke3 {[%emt 0:00:01]} Kf7 {[%emt 0:00:17]} 41. Bd1 {[%emt 0:00:11]} Ke7 {[%emt 0:00:03]} 42. b4 {[%emt 0:00:03]} Rd8 {[%emt 0:00:06]} 43. b5 $1 {[%emt 0:00:15]} cxb5 {[%emt 0:00:27]} 44. Rb2 {[%emt 0:00:22]} e5 {[%emt 0:00:07]} 45. dxe5 {[%emt 0:00:25]} Rxd3+ {[%emt 0:00:10]} 46. Kxd3 {[%emt 0:00:00]} Rxd1+ {[%emt 0:00:04]} 47. Ke2 {[%emt 0:00:01]} Rh1 {[%emt 0:00:22]} 48. exf6+ {[%emt 0:00:01]} Kxf6 {[%emt 0:00:01]} 49. Kf3 $1 {[%emt 0:00:00]} Rxh3 {[%emt 0:00:05]} 50. Rxb5 {[%emt 0:00:01]} Rh1 {[%emt 0:00:03]} 51. Rxb7 {[%emt 0:00:06]} Rf1+ {[%emt 0:00:02]} 52. Kg4 {[%emt 0:00:01]} g6 {[%emt 0:00:06]} 53. Rb6+ {[%emt 0:00:01]} Kf7 {[%emt 0:00:01]} 54. Ra6 {[%emt 0:00:05]} Rf2 {[%emt 0:00:02]} 55. Ra8 {[%emt 0:00:03]} Rf1 {[%emt 0:00:02]} 56. Rh8 {[%emt 0:00:02]} Kg7 {[%emt 0:00:02]} 57. Rb8 {[%emt 0:00:02]} Kf7 {[%emt 0:00:01]} 58. Rb4 {[%emt 0:00:03]} Kf6 {[%emt 0:00:02]} 59. Rb6+ {[%emt 0:00:02]} Kf7 {[%emt 0:00:01]} 60. Rb7+ {[%emt 0:00:00]} Kf6 {[%emt 0:00:01]} 61. Rb6+ {[%emt 0:00:00]} 1/2-1/2

[Event "CCT Chessable Masters D-II 2024"]
[Site "Online"]
[Date "2024.02.02"]
[Round "1"]
[White "jefferyx"]
[Black "AnishGiri"]
[Result "1-0"]
[ECO "C43"]
[WhiteElo "2692"]
[BlackElo "2735"]
[Annotator "ChessBase"]
[PlyCount "99"]
[EventDate "2024.01.12"]
[EventType "k.o."]
[EventCountry "NET"]
[SourceTitle "playchess.com"]
[Source "ChessBase"]
[SourceQuality "1"]
[TimeControl "600+2"]

1. e4 {[%emt 0:00:04]} e5 {[%emt 0:00:05]} 2. Nf3 {[%emt 0:00:03]} Nf6 {[%emt 0:03:14]} 3. d4 {[%emt 0:00:05]} Nxe4 {[%emt 0:00:03]} 4. Bd3 {[%emt 0:00:03]} d5 {[%emt 0:00:03]} 5. dxe5 {[%emt 0:00:16]} Nc5 {[%emt 0:00:06]} 6. O-O {[%emt 0:00:16]} Be7 {[%emt 0:00:05]} 7. Be3 {[%emt 0:00:05]} O-O {[%emt 0:00:14]} 8. Be2 {[%emt 0:00:38]} c6 {[%emt 0:00:05]} 9. Nbd2 {[%emt 0:00:10]} Nbd7 {[%emt 0:00:07]} 10. Re1 {[%emt 0:00:14]} a5 {[%emt 0:00:14]} 11. c4 {[%emt 0:00:18]} Nb6 {[%emt 0:00:04]} 12. Nb3 {[%emt 0:00:04]} Nxb3 {[%emt 0:00:09]} 13. axb3 {[%emt 0:00:02]} dxc4 {[%emt 0:00:05]} 14. Qxd8 {[%emt 0:00:07]} Bxd8 {[%emt 0:00:02]} 15. bxc4 {[%emt 0:00:03]} Be6 {[%emt 0:00:06]} 16. Rec1 {[%emt 0:00:19]} Nd7 {[%emt 0:00:07]} 17. Nd4 {[%emt 0:00:14]} Nxe5 {[%emt 0:00:06]} 18. f4 {[%emt 0:00:03]} Ng4 {[%emt 0:00:26]} 19. Nxe6 {[%emt 0:00:04]} Nxe3 {[%emt 0:00:04]} 20. Nxf8 {[%emt 0:00:02]} Kxf8 {[%emt 0:00:07]} 21. g4 {[%emt 0:00:37]} Bf6 {[%emt 0:00:15]} 22. Kf2 {[%emt 0:00:05]} Bd4 {[%emt 0:00:07]} 23. Kf3 {[%emt 0:00:12]} f5 {[%emt 0:00:27]} 24. h3 {[%emt 0:00:10]} fxg4+ {[%emt 0:00:16]} 25. hxg4 {[%emt 0:00:03]} Re8 {[%emt 0:00:03]} 26. Rxa5 {[%emt 0:00:08]} Nxg4 {[%emt 0:00:11]} 27. Kxg4 {[%emt 0:00:07]} Rxe2 {[%emt 0:00:02]} 28. b4 {[%emt 0:00:08]} Re7 {[%emt 0:00:23]} 29. Rd1 {[%emt 0:00:12]} Bc3 {[%emt 0:00:11]} 30. Ra8+ {[%emt 0:00:28]} Kf7 {[%emt 0:00:03]} 31. b5 {[%emt 0:00:02]} cxb5 {[%emt 0:00:24]} 32. cxb5 {[%emt 0:00:02]} g6 {[%emt 0:00:43]} 33. Rad8 {[%emt 0:00:05]} h5+ {[%emt 0:00:03]} 34. Kf3 {[%emt 0:00:03]} b6 {[%emt 0:00:16]} 35. R1d6 {[%emt 0:00:12]} Bb4 {[%emt 0:00:06]} 36. R6d7 {[%emt 0:00:41]} Bc5 {[%emt 0:00:23]} 37. Rxe7+ {[%emt 0:00:03]} Kxe7 {[%emt 0:00:02]} 38. Rc8 {[%emt 0:00:02]} Bg1 {[%emt 0:00:27]} 39. Rc7+ {[%emt 0:00:34]} Kf6 {[%emt 0:00:06]} 40. Rc1 {[%emt 0:00:02]} Bd4 {[%emt 0:00:07]} 41. Ke4 {[%emt 0:00:03]} Bf2 {[%emt 0:00:03]} 42. Rc6+ {[%emt 0:00:03]} Kg7 {[%emt 0:00:05]} 43. Rc2 {[%emt 0:00:02]} Be1 {[%emt 0:00:11]} 44. Rc7+ {[%emt 0:00:34]} Kh6 {[%emt 0:00:04]} 45. Rc6 {[%emt 0:00:04]} Bf2 {[%emt 0:00:05]} 46. f5 {[%emt 0:00:03]} h4 {[%emt 0:00:02]} 47. Rxg6+ {[%emt 0:00:04]} Kh5 {[%emt 0:00:03]} 48. Rg8 {[%emt 0:00:04]} Bc5 {[%emt 0:00:06]} 49. f6 {[%emt 0:00:04]} h3 {[%emt 0:00:04]} 50. Kf3 {[%emt 0:00:06]} 1-0

[Event "CCT Chessable Masters D-II 2024"]
[Site "Online"]
[Date "2024.02.02"]
[Round "1"]
[White "Svidler, Peter"]
[Black "Keymer, Vincent"]
[Result "0-1"]
[ECO "A15"]
[WhiteElo "2689"]
[BlackElo "2743"]
[Annotator "TA"]
[PlyCount "70"]
[EventDate "2024.01.12"]
[EventType "k.o."]
[EventCountry "NET"]
[SourceTitle "playchess.com"]
[Source "ChessBase"]
[SourceQuality "1"]
[TimeControl "600+2"]

{[%evp 9,70,-45,-34,-84,-79,-109,-65,-116,-91,-108,-105,-104,-94,-101,-108,-103,-106,-118,-128,-141,-120,-190,-126,-137,-125,-166,-70,-50,-35,-29,-15,-158,-175,-168,-166,-165,-188,-177,-175,-183,-172,-222,-205,-217,-113,-100,-106,-128,-130,-181,-176,-173,-177,-170,-82,-309,-286,-292,-308,-306,-299,-306,-304]} 1. c4 {[%emt 0:00:03]} Nf6 {[%emt 0:00:04]} 2. e3 {[%emt 0:00:08]} e6 {[%emt 0:00:12]} 3. b3 {[%emt 0:00:02]} c5 {[%emt 0:00:19]} 4. Bb2 {[%emt 0:00:06]} Nc6 {[%emt 0:00:01]} 5. g4 {[%emt 0:01:06]} h6 {[%emt 0:00:19]} 6. h4 {[%emt 0:02:03]} ({White should play} 6. Bg2 $15) 6... d5 $17 {[%emt 0:00:03]} 7. Bg2 {[%emt 0:00:02]} dxc4 {[%emt 0:01:58] ...Nb4 is the strong threat.} 8. bxc4 {[%emt 0:00:17]} (8. Na3 $15) 8... e5 {[%emt 0:00:39]} 9. g5 {[%emt 0:00:12]} hxg5 {[%emt 0:00:00]} 10. hxg5 {[%emt 0:00:02]} Rxh1 {[%emt 0:00:01]} 11. Bxh1 {[%emt 0:00:00] [#]} Ng4 {[%emt 0:00:01] Hoping for ...Nb4.} 12. Bxc6+ {[%emt 0:01:02]} bxc6 {[%emt 0:00:04]} 13. Qf3 {[%emt 0:00:08]} Rb8 $1 {[%emt 0:00:11]} (13... Qxg5 $2 {is the wrong capture.} 14. Qxc6+ Kd8 15. Qxa8 $18) 14. Bc3 {[%emt 0:00:29]} Qxg5 {[%emt 0:00:08][%cal Og4e3] aiming for ...Nxe3! Black is more active.} 15. Ne2 {[%emt 0:01:38]} (15. Qxc6+ $17 {keeps fighting.} Bd7 16. Qg2) 15... Bd7 {[%emt 0:00:24]} ({Better is} 15... Qf5 $19 16. Qxf5 Bxf5) 16. d3 {[%emt 0:00:03]} Qg6 {[%emt 0:01:22]} 17. e4 {[%emt 0:00:11]} Be7 {[%emt 0:00:49]} (17... Nh2 $19 18. Qg3 Qxg3 19. Nxg3 Nf3+ 20. Kd1 Nd4) 18. Nd2 $15 {[%emt 0:00:35]} Qh6 {[%emt 0:00:21]} 19. O-O-O $1 {[%emt 0:00:10]} Qh2 {[%emt 0:01:35]} (19... Qf6 {simplifies} 20. Qxf6 gxf6 21. Rf1 Be6) 20. Rh1 {[%emt 0:01:31]} (20. Rf1 $11) 20... Qxf2 $17 {[%emt 0:00:03]} 21. Rh8+ {[%emt 0:00:00]} Bf8 {[%emt 0:00:00]} 22. Qxf2 {[%emt 0:00:01]} Nxf2 {[%emt 0:00:02]} 23. Kc2 {[%emt 0:00:00] [#]} f6 {[%emt 0:00:18]} 24. Nb3 {[%emt 0:00:02]} Bg4 {[%emt 0:00:29]} 25. Nec1 {[%emt 0:00:11]} (25. Rh2 {is a better defense.} Nh3 26. Bd2) 25... Kf7 {[%emt 0:00:11]} 26. Nxc5 {[%emt 0:00:06]} Bd6 {[%emt 0:00:02]} (26... Nd1 $19 27. N1b3 Nxc3 28. Kxc3 Bd6 29. Rxb8 Bxb8) 27. Rxb8 {[%emt 0:00:05]} Bxb8 {[%emt 0:00:00]} 28. Na6 {[%emt 0:00:02]} Bd6 {[%emt 0:00:02]} 29. c5 {[%emt 0:00:04]} (29. Be1 $17 Nh3 30. Nb3) 29... Be7 {[%emt 0:00:03]} 30. Be1 {[%emt 0:00:02]} Nh3 {[%emt 0:00:13]} 31. Nb3 {[%emt 0:00:02]} Nf4 {[%emt 0:00:23]} (31... Be6 $19 {has better winning chances.} 32. Bd2 g6) 32. Na5 $2 {[%emt 0:00:04] Loses the game.} (32. Bf2 $17) 32... Be2 $19 {[%emt 0:00:05] Black has a decisive advantage.} 33. Nb4 {[%emt 0:00:11]} Bxc5 {[%emt 0:00:01]} 34. Naxc6 {[%emt 0:00:01]} Bxb4 {[%emt 0:00:05]} 35. Nxb4 {[%emt 0:00:02]} a5 {[%emt 0:00:01] Weighted Error Value: White=0.30/Black=0.21 (precise) .  Loses game:     	White=1     	---        Mistake:       	White=5     	Black=4      Inaccurate:     	White=2     	Black=1      OK:         	White=9     	Black=12     Best:        	White=2     	Black=3      Strong:       	White=1     	Black=1} 0-1

[Event "CCT Chessable Masters D-II 2024"]
[Site "Online"]
[Date "2024.02.02"]
[Round "1"]
[White "jefferyx"]
[Black "AnishGiri"]
[Result "1/2-1/2"]
[ECO "B51"]
[WhiteElo "2689"]
[BlackElo "2738"]
[Annotator "ChessBase"]
[PlyCount "286"]
[EventDate "2024.01.12"]
[EventType "k.o."]
[EventCountry "NET"]
[SourceTitle "playchess.com"]
[Source "ChessBase"]
[SourceQuality "1"]
[TimeControl "600+2"]

1. e4 {[%emt 0:00:02]} c5 {[%emt 0:00:04]} 2. Nf3 {[%emt 0:00:02]} d6 {[%emt 0:00:02]} 3. Bb5+ {[%emt 0:00:04]} Nd7 {[%emt 0:00:02]} 4. d4 {[%emt 0:00:11]} cxd4 {[%emt 0:00:02]} 5. Nxd4 {[%emt 0:00:00]} Ngf6 {[%emt 0:00:07]} 6. O-O {[%emt 0:00:02]} a6 {[%emt 0:00:01]} 7. Bd3 {[%emt 0:00:02]} Nc5 {[%emt 0:00:01]} 8. Re1 {[%emt 0:00:07]} e5 {[%emt 0:00:26]} 9. Nf3 {[%emt 0:00:01]} b5 {[%emt 0:00:31]} 10. b4 {[%emt 0:01:17]} Nxd3 {[%emt 0:00:02]} 11. Qxd3 {[%emt 0:00:01]} Be6 {[%emt 0:01:26]} 12. a4 {[%emt 0:00:06]} Bc4 {[%emt 0:00:02]} 13. Qe3 {[%emt 0:01:00]} Be7 {[%emt 0:00:16]} 14. Na3 {[%emt 0:00:02]} Be6 {[%emt 0:00:26]} 15. Qd3 {[%emt 0:00:38]} bxa4 {[%emt 0:00:26]} 16. Bg5 {[%emt 0:00:54]} O-O {[%emt 0:00:06]} 17. Nc4 {[%emt 0:00:13]} d5 {[%emt 0:02:08]} 18. Bxf6 {[%emt 0:02:04]} Bxf6 {[%emt 0:00:05]} 19. Ncxe5 {[%emt 0:00:04]} dxe4 {[%emt 0:00:01]} 20. Qxe4 {[%emt 0:00:01]} Bd5 {[%emt 0:00:03]} 21. Qd3 {[%emt 0:00:42]} Bxf3 {[%emt 0:00:26]} 22. Qxf3 {[%emt 0:00:02]} Qc7 {[%emt 0:01:02]} 23. Qf5 {[%emt 0:00:28]} Rfe8 {[%emt 0:00:40]} 24. f4 {[%emt 0:00:01]} Qb6+ {[%emt 0:00:02]} 25. Kh1 {[%emt 0:00:01]} Qxb4 {[%emt 0:00:14]} 26. Qe4 {[%emt 0:00:16]} Qxe4 {[%emt 0:00:57]} 27. Rxe4 {[%emt 0:00:01]} Rac8 {[%emt 0:00:08]} 28. Rexa4 {[%emt 0:00:02]} Rxc2 {[%emt 0:00:09]} 29. Rxa6 {[%emt 0:00:01]} Bxe5 {[%emt 0:00:01]} 30. fxe5 {[%emt 0:00:01]} Re2 {[%emt 0:00:06]} 31. R6a5 {[%emt 0:00:14]} g6 {[%emt 0:00:05]} 32. h4 {[%emt 0:00:05]} Kg7 {[%emt 0:00:05]} 33. Rf1 {[%emt 0:00:12]} Re7 {[%emt 0:00:08]} 34. Kh2 {[%emt 0:00:22]} Rd7 {[%emt 0:00:13]} 35. Kh3 {[%emt 0:00:01]} Re7 {[%emt 0:00:12]} 36. Kg3 {[%emt 0:00:08]} R2xe5 {[%emt 0:00:04]} 37. Rxe5 {[%emt 0:00:00]} Rxe5 {[%emt 0:00:01]} 38. Ra1 {[%emt 0:00:02]} Re3+ {[%emt 0:00:01]} 39. Kf2 {[%emt 0:00:02]} Re4 {[%emt 0:00:02]} 40. g3 {[%emt 0:00:01]} Re7 {[%emt 0:00:01]} 41. Kf3 {[%emt 0:00:01]} f6 {[%emt 0:00:02]} 42. Ra6 {[%emt 0:00:01]} h5 {[%emt 0:00:02]} 43. Rb6 {[%emt 0:00:01]} Kf7 {[%emt 0:00:01]} 44. Ra6 {[%emt 0:00:01]} Rd7 {[%emt 0:00:00]} 45. Rb6 {[%emt 0:00:01]} Rd3+ {[%emt 0:00:01]} 46. Kf2 {[%emt 0:00:01]} Ke7 {[%emt 0:00:01]} 47. Ra6 {[%emt 0:00:04]} Rd6 {[%emt 0:00:01]} 48. Ra4 {[%emt 0:00:05]} Ke6 {[%emt 0:00:01]} 49. Ke3 {[%emt 0:00:06]} Rd5 {[%emt 0:00:06]} 50. Rb4 {[%emt 0:00:08]} g5 {[%emt 0:00:05]} 51. hxg5 {[%emt 0:00:02]} fxg5 {[%emt 0:00:01]} 52. Kf3 {[%emt 0:00:08]} Rd3+ {[%emt 0:00:04]} 53. Kf2 {[%emt 0:00:06]} Rd2+ {[%emt 0:00:00]} 54. Kf1 {[%emt 0:00:28]} Kf5 {[%emt 0:00:08]} 55. Ra4 {[%emt 0:00:03]} Ke5 {[%emt 0:00:03]} 56. Rb4 {[%emt 0:00:14]} Rd4 {[%emt 0:00:02]} 57. Rb2 {[%emt 0:00:01]} Kf5 {[%emt 0:00:04]} 58. Kg2 {[%emt 0:00:03]} Kg4 {[%emt 0:00:06]} 59. Ra2 {[%emt 0:00:03]} Rc4 {[%emt 0:00:01]} 60. Rb2 {[%emt 0:00:01]} Ra4 {[%emt 0:00:00]} 61. Rc2 {[%emt 0:00:01]} Rb4 {[%emt 0:00:01]} 62. Ra2 {[%emt 0:00:01]} Rd4 {[%emt 0:00:00]} 63. Rb2 {[%emt 0:00:01]} Kf5 {[%emt 0:00:01]} 64. Rb5+ {[%emt 0:00:02]} Kg4 {[%emt 0:00:00]} 65. Rb2 {[%emt 0:00:01]} Re4 {[%emt 0:00:01]} 66. Ra2 {[%emt 0:00:01]} Kf5 {[%emt 0:00:00]} 67. Kf3 {[%emt 0:00:08]} Re5 {[%emt 0:00:02]} 68. Kg2 {[%emt 0:00:02]} Rd5 {[%emt 0:00:01]} 69. Rf2+ {[%emt 0:00:12]} Ke4 {[%emt 0:00:00]} 70. Re2+ {[%emt 0:00:02]} Kd3 {[%emt 0:00:01]} 71. Re8 {[%emt 0:00:07]} Kc3 {[%emt 0:00:01]} 72. Rc8+ {[%emt 0:00:03]} Kd2 {[%emt 0:00:02]} 73. Re8 {[%emt 0:00:01]} Kd1 {[%emt 0:00:01]} 74. Kf2 {[%emt 0:00:05]} Rd2+ {[%emt 0:00:02]} 75. Kf1 {[%emt 0:00:02]} Rd3 {[%emt 0:00:01]} 76. Kf2 {[%emt 0:00:03]} Rd5 {[%emt 0:00:01]} 77. Re1+ {[%emt 0:00:02]} Kd2 {[%emt 0:00:01]} 78. Re2+ {[%emt 0:00:00]} Kd3 {[%emt 0:00:01]} 79. Re8 {[%emt 0:00:05]} Rf5+ {[%emt 0:00:02]} 80. Kg2 {[%emt 0:00:02]} Kd4 {[%emt 0:00:00]} 81. Re2 {[%emt 0:00:08]} Re5 {[%emt 0:00:03]} 82. Ra2 {[%emt 0:00:02]} Ke4 {[%emt 0:00:03]} 83. Re2+ {[%emt 0:00:04]} Kf5 {[%emt 0:00:01]} 84. Ra2 {[%emt 0:00:01]} Rd5 {[%emt 0:00:01]} 85. Rb2 {[%emt 0:00:02]} Ke4 {[%emt 0:00:02]} 86. Re2+ {[%emt 0:00:02]} Kd3 {[%emt 0:00:01]} 87. Re8 {[%emt 0:00:01]} Kd4 {[%emt 0:00:00]} 88. Re2 {[%emt 0:00:02]} Re5 {[%emt 0:00:01]} 89. Ra2 {[%emt 0:00:02]} Rd5 {[%emt 0:00:03]} 90. Re2 {[%emt 0:00:01]} Kc3 {[%emt 0:00:01]} 91. Re8 {[%emt 0:00:04]} Rd2+ {[%emt 0:00:01]} 92. Kf1 {[%emt 0:00:02]} Kd3 {[%emt 0:00:04]} 93. Re5 {[%emt 0:00:02]} g4 {[%emt 0:00:11]} 94. Kg1 {[%emt 0:00:05]} Kd4 {[%emt 0:00:05]} 95. Re8 {[%emt 0:00:08]} Rb2 {[%emt 0:00:04]} 96. Kf1 {[%emt 0:00:06]} Rb3 {[%emt 0:00:01]} 97. Kf2 {[%emt 0:00:01]} Rf3+ {[%emt 0:00:01]} 98. Kg2 {[%emt 0:00:01]} Re3 {[%emt 0:00:00]} 99. Rd8+ {[%emt 0:00:01]} Ke4 {[%emt 0:00:01]} 100. Re8+ {[%emt 0:00:01]} Kd3 {[%emt 0:00:01]} 101. Rd8+ {[%emt 0:00:01]} Ke2 {[%emt 0:00:00]} 102. Rh8 {[%emt 0:00:02]} Re5 {[%emt 0:00:01]} 103. Ra8 {[%emt 0:00:02]} Rd5 {[%emt 0:00:01]} 104. Re8+ {[%emt 0:00:02]} Kd1 {[%emt 0:00:01]} 105. Kf2 {[%emt 0:00:02]} Kd2 {[%emt 0:00:01]} 106. Re2+ {[%emt 0:00:02]} Kc3 {[%emt 0:00:01]} 107. Re8 {[%emt 0:00:01]} Rd2+ {[%emt 0:00:01]} 108. Kf1 {[%emt 0:00:01]} Rd5 {[%emt 0:00:02]} 109. Kf2 {[%emt 0:00:01]} Rf5+ {[%emt 0:00:01]} 110. Kg2 {[%emt 0:00:02]} Kd4 {[%emt 0:00:00]} 111. Rd8+ {[%emt 0:00:01]} Rd5 {[%emt 0:00:01]} 112. Re8 {[%emt 0:00:01]} Re5 {[%emt 0:00:00]} 113. Rd8+ {[%emt 0:00:01]} Ke3 {[%emt 0:00:02]} 114. Ra8 {[%emt 0:00:06]} Rd5 {[%emt 0:00:02]} 115. Re8+ {[%emt 0:00:01]} Kd4 {[%emt 0:00:01]} 116. Ra8 {[%emt 0:00:03]} Ke5 {[%emt 0:00:01]} 117. Re8+ {[%emt 0:00:01]} Kf6 {[%emt 0:00:01]} 118. Rf8+ {[%emt 0:00:03]} Kg7 {[%emt 0:00:01]} 119. Rf2 {[%emt 0:00:01]} Kg6 {[%emt 0:00:03]} 120. Ra2 {[%emt 0:00:02]} Kf6 {[%emt 0:00:01]} 121. Rf2+ {[%emt 0:00:01]} Ke6 {[%emt 0:00:00]} 122. Re2+ {[%emt 0:00:01]} Kf5 {[%emt 0:00:01]} 123. Rf2+ {[%emt 0:00:01]} Ke6 {[%emt 0:00:04]} 124. Re2+ {[%emt 0:00:00]} Re5 {[%emt 0:00:00]} 125. Rd2 {[%emt 0:00:02]} Re3 {[%emt 0:00:02]} 126. Ra2 {[%emt 0:00:01]} Ke5 {[%emt 0:00:01]} 127. Ra5+ {[%emt 0:00:02]} Ke4 {[%emt 0:00:01]} 128. Ra4+ {[%emt 0:00:01]} Kf5 {[%emt 0:00:00]} 129. Ra5+ {[%emt 0:00:01]} Re5 {[%emt 0:00:00]} 130. Ra2 {[%emt 0:00:01]} Kg5 {[%emt 0:00:02]} 131. Rb2 {[%emt 0:00:04]} Ra5 {[%emt 0:00:00]} 132. Rc2 {[%emt 0:00:00]} Rd5 {[%emt 0:00:01]} 133. Rb2 {[%emt 0:00:02]} Kf5 {[%emt 0:00:00]} 134. Ra2 {[%emt 0:00:00]} Ke4 {[%emt 0:00:01]} 135. Re2+ {[%emt 0:00:01]} Kd3 {[%emt 0:00:01]} 136. Re8 {[%emt 0:00:04]} Kc3 {[%emt 0:00:01]} 137. Rc8+ {[%emt 0:00:01]} Kd4 {[%emt 0:00:03]} 138. Ra8 {[%emt 0:00:04]} Kc5 {[%emt 0:00:02]} 139. Ra5+ {[%emt 0:00:02]} Kd6 {[%emt 0:00:01]} 140. Ra6+ {[%emt 0:00:01]} Ke5 {[%emt 0:00:01]} 141. Ra2 {[%emt 0:00:01]} Rc5 {[%emt 0:00:03]} 142. Re2+ {[%emt 0:00:01]} Kd4 {[%emt 0:00:00]} 143. Re8 {[%emt 0:00:05]} Kd3 {[%emt 0:00:02]} 1/2-1/2